[Event "Portugal Open 2019"]
[Site "Lisbon"]
[Date "2019.02.09"]
[Round "9.12"]
[White "Dvirnyy, Danyyil"]
[Black "Sousa, Ludy Helsio Paulo"]
[Result "1-0"]
[ECO "E67"]
[WhiteElo "2487"]
[BlackElo "2169"]
[Annotator "ChessBase"]
[PlyCount "91"]
[EventDate "2019.01.25"]
[EventType "swiss"]
[EventCountry "POR"]
[SourceTitle "playchess.com"]
[Source "ChessBase"]
[SourceQuality "1"]
[TimeControl "5400+30"]

1. d4 {[%emt 0:00:00]} Nf6 {[%emt 0:01:38]} 2. c4 {[%emt 0:00:00]} g6 {[%emt 0:00:44]} 3. Nc3 {[%emt 0:00:23]} Bg7 {[%emt 0:00:01]} 4. Nf3 {[%emt 0:00:09]} d6 {[%emt 0:00:05]} 5. g3 {[%emt 0:00:14]} O-O {[%emt 0:00:03]} 6. Bg2 {[%emt 0:00:08]} Nbd7 {[%emt 0:00:36]} 7. O-O {[%emt 0:00:13]} e5 {[%emt 0:00:04]} 8. b3 {[%emt 0:00:11]} Re8 {[%emt 0:00:59]} 9. e4 {[%emt 0:00:24]} exd4 {[%emt 0:00:17]} 10. Nxd4 {[%emt 0:00:07]} Nc5 {[%emt 0:00:06]} 11. f3 {[%emt 0:00:18]} a5 {[%emt 0:02:19]} 12. Be3 {[%emt 0:00:35]} b6 {[%emt 0:01:16]} 13. Qc2 {[%emt 0:03:38]} Bb7 {[%emt 0:00:59]} 14. Rad1 {[%emt 0:00:53]} Nfd7 {[%emt 0:08:30]} 15. Bf2 {[%emt 0:06:35]} Ne5 {[%emt 0:02:03]} 16. a3 {[%emt 0:02:40]} Qd7 {[%emt 0:09:14]} 17. Nd5 {[%emt 0:05:36]} a4 {[%emt 0:08:57]} 18. b4 {[%emt 0:00:50]} Nb3 {[%emt 0:04:24]} 19. h3 {[%emt 0:03:07]} Nxd4 {[%emt 0:14:23]} 20. Bxd4 {[%emt 0:00:58]} b5 {[%emt 0:04:35]} 21. cxb5 {[%emt 0:15:12]} Bxd5 {[%emt 0:00:44]} 22. exd5 {[%emt 0:00:15]} Qxb5 {[%emt 0:01:47]} 23. Qc3 {[%emt 0:07:03]} Qc4 {[%emt 0:01:16]} 24. Qa1 {[%emt 0:00:23]} Bh6 {[%emt 0:06:00]} 25. f4 {[%emt 0:01:23]} Nd3 {[%emt 0:01:36]} 26. Qc3 {[%emt 0:00:29]} Qxc3 {[%emt 0:01:07]} 27. Bxc3 {[%emt 0:00:07]} Re3 {[%emt 0:00:23]} 28. Rf3 {[%emt 0:00:10]} Nxf4 {[%emt 0:04:09]} 29. gxf4 {[%emt 0:01:04]} Rxf3 {[%emt 0:00:11]} 30. Bxf3 {[%emt 0:00:06]} Bxf4 {[%emt 0:00:05]} 31. Re1 {[%emt 0:00:49]} Kf8 {[%emt 0:00:56]} 32. Kf2 {[%emt 0:04:24]} Bg5 {[%emt 0:00:34]} 33. Kg3 {[%emt 0:01:12]} f5 {[%emt 0:00:41]} 34. h4 {[%emt 0:00:32]} Be7 {[%emt 0:00:48]} 35. Bd4 {[%emt 0:01:39]} Kf7 {[%emt 0:00:52]} 36. Rc1 {[%emt 0:00:16]} Bd8 {[%emt 0:00:02]} 37. Be2 {[%emt 0:00:38]} h6 {[%emt 0:02:27]} 38. Bd3 {[%emt 0:01:53]} Rc8 {[%emt 0:00:33]} 39. Bb5 {[%emt 0:03:21]} Bf6 {[%emt 0:01:45]} 40. Bd7 {[%emt 0:00:16]} Rf8 {[%emt 0:02:55]} 41. Be6+ {[%emt 0:00:21]} Ke8 {[%emt 0:00:01]} 42. Bxf6 {[%emt 0:00:31]} Rxf6 {[%emt 0:00:01]} 43. Rxc7 {[%emt 0:00:17]} g5 {[%emt 0:00:17]} 44. hxg5 {[%emt 0:00:17]} hxg5 {[%emt 0:00:01]} 45. b5 {[%emt 0:00:24]} g4 {[%emt 0:01:02]} 46. b6 {[%emt 0:00:28]} 1-0

[Event "Portugal Open 2019"]
[Site "Lisbon"]
[Date "2019.02.09"]
[Round "9.13"]
[White "Li, Xueyi"]
[Black "Iniyan, P."]
[Result "1/2-1/2"]
[ECO "E91"]
[WhiteElo "2217"]
[BlackElo "2480"]
[Annotator "ChessBase"]
[PlyCount "209"]
[EventDate "2019.01.25"]
[EventType "swiss"]
[EventCountry "POR"]
[SourceTitle "playchess.com"]
[Source "ChessBase"]
[SourceQuality "1"]
[TimeControl "5400+30"]

1. d4 {[%emt 0:00:00]} Nf6 {[%emt 0:02:00]} 2. c4 {[%emt 0:00:00]} g6 {[%emt 0:00:38]} 3. Nc3 {[%emt 0:00:00]} Bg7 {[%emt 0:00:04]} 4. e4 {[%emt 0:00:00]} d6 {[%emt 0:00:08]} 5. Be2 {[%emt 0:00:03]} O-O {[%emt 0:00:05]} 6. Nf3 {[%emt 0:00:04]} Nbd7 {[%emt 0:00:54]} 7. O-O {[%emt 0:00:09]} e5 {[%emt 0:00:02]} 8. Be3 {[%emt 0:04:00]} Ng4 {[%emt 0:00:54]} 9. Bg5 {[%emt 0:00:25]} f6 {[%emt 0:00:06]} 10. Bd2 {[%emt 0:00:23]} Nh6 {[%emt 0:07:41]} 11. b4 {[%emt 0:04:50]} Nf7 {[%emt 0:07:13]} 12. c5 {[%emt 0:02:30]} dxc5 {[%emt 0:05:49]} 13. dxc5 {[%emt 0:00:23]} c6 {[%emt 0:00:05]} 14. Qb3 {[%emt 0:01:16]} Qe7 {[%emt 0:01:50]} 15. Rad1 {[%emt 0:04:12]} Re8 {[%emt 0:02:58]} 16. Be3 {[%emt 0:01:16]} Nf8 {[%emt 0:01:08]} 17. Nd2 {[%emt 0:00:54]} f5 {[%emt 0:00:41]} 18. exf5 {[%emt 0:06:45]} gxf5 {[%emt 0:02:00]} 19. f3 {[%emt 0:00:36]} Ne6 {[%emt 0:02:30]} 20. Bc4 {[%emt 0:07:00]} Kh8 {[%emt 0:01:05]} 21. Rfe1 {[%emt 0:09:09]} Qf6 {[%emt 0:00:48]} 22. Bf2 {[%emt 0:06:20]} Nfg5 {[%emt 0:11:56]} 23. Bf1 {[%emt 0:15:24]} Nf4 {[%emt 0:04:00]} 24. h4 {[%emt 0:10:57]} Be6 {[%emt 0:02:44]} 25. Qc2 {[%emt 0:02:08]} Nf7 {[%emt 0:03:08]} 26. Ne2 {[%emt 0:02:21]} Nd5 {[%emt 0:02:36]} 27. a3 {[%emt 0:01:09]} a5 {[%emt 0:03:01]} 28. bxa5 {[%emt 0:07:38]} Rxa5 {[%emt 0:00:07]} 29. Nc4 {[%emt 0:00:04]} Ra7 {[%emt 0:00:30]} 30. Nc3 {[%emt 0:00:45]} Nf4 {[%emt 0:04:12]} 31. Ne2 {[%emt 0:01:20]} Nd5 {[%emt 0:02:49]} 32. Nc3 {[%emt 0:00:05]} Rg8 {[%emt 0:01:01]} 33. Nxd5 {[%emt 0:01:52]} Bxd5 {[%emt 0:03:16]} 34. Ne3 {[%emt 0:02:00]} Be6 {[%emt 0:04:47]} 35. Bc4 {[%emt 0:01:25]} f4 {[%emt 0:00:09]} 36. Ng4 {[%emt 0:01:11]} Qe7 {[%emt 0:00:04]} 37. h5 {[%emt 0:01:30]} Rxa3 {[%emt 0:02:09]} 38. h6 {[%emt 0:01:01]} Bf6 {[%emt 0:00:35]} 39. Bxe6 {[%emt 0:01:04]} Qxe6 {[%emt 0:00:10]} 40. Qb2 {[%emt 0:01:07]} Rb3 {[%emt 0:11:35]} 41. Qd2 {[%emt 0:00:57]} Ng5 {[%emt 0:04:47]} 42. Qd7 {[%emt 0:04:04]} Qxd7 {[%emt 0:00:34]} 43. Rxd7 {[%emt 0:00:05]} Nxf3+ {[%emt 0:00:04]} 44. gxf3 {[%emt 0:00:33]} Rxf3 {[%emt 0:00:03]} 45. Kg2 {[%emt 0:00:29]} Rb3 {[%emt 0:00:59]} 46. Rf7 {[%emt 0:00:40]} Rxg4+ {[%emt 0:05:06]} 47. Kf1 {[%emt 0:00:04]} Bh4 {[%emt 0:00:52]} 48. Rf8+ {[%emt 0:01:06]} Rg8 {[%emt 0:00:07]} 49. Rxg8+ {[%emt 0:00:04]} Kxg8 {[%emt 0:00:03]} 50. Bxh4 {[%emt 0:00:05]} Rh3 {[%emt 0:00:53]} 51. Bf6 {[%emt 0:00:59]} Rxh6 {[%emt 0:01:09]} 52. Bxe5 {[%emt 0:00:08]} Rh3 {[%emt 0:00:38]} 53. Kg2 {[%emt 0:00:22]} Rb3 {[%emt 0:00:25]} 54. Bxf4 {[%emt 0:00:23]} Rb5 {[%emt 0:01:03]} 55. Be3 {[%emt 0:00:20]} Kf7 {[%emt 0:00:05]} 56. Kf3 {[%emt 0:00:08]} b6 {[%emt 0:00:08]} 57. cxb6 {[%emt 0:00:22]} c5 {[%emt 0:00:03]} 58. Rh1 {[%emt 0:00:13]} Rxb6 {[%emt 0:00:10]} 59. Rxh7+ {[%emt 0:00:06]} Ke8 {[%emt 0:00:08]} 60. Bxc5 {[%emt 0:00:10]} Rf6+ {[%emt 0:00:46]} 61. Ke4 {[%emt 0:00:09]} Rf7 {[%emt 0:00:07]} 62. Rh5 {[%emt 0:00:32]} Kd7 {[%emt 0:00:06]} 63. Kd5 {[%emt 0:00:17]} Rg7 {[%emt 0:00:24]} 64. Bd4 {[%emt 0:00:04]} Rf7 {[%emt 0:00:22]} 65. Be5 {[%emt 0:00:18]} Ke7 {[%emt 0:00:25]} 66. Rh6 {[%emt 0:00:29]} Kd7 {[%emt 0:00:07]} 67. Rd6+ {[%emt 0:02:11]} Ke7 {[%emt 0:00:11]} 68. Rb6 {[%emt 0:01:51]} Kd7 {[%emt 0:00:06]} 69. Rb7+ {[%emt 0:01:16]} Ke8 {[%emt 0:00:06]} 70. Rb8+ {[%emt 0:00:03]} Kd7 {[%emt 0:00:05]} 71. Ra8 {[%emt 0:00:05]} Ke7 {[%emt 0:00:31]} 72. Bd6+ {[%emt 0:01:46]} Kf6 {[%emt 0:00:16]} 73. Rg8 {[%emt 0:00:04]} Kf5 {[%emt 0:00:24]} 74. Rg1 {[%emt 0:00:12]} Ra7 {[%emt 0:00:33]} 75. Rf1+ {[%emt 0:00:08]} Kg5 {[%emt 0:00:16]} 76. Be5 {[%emt 0:00:18]} Ra5+ {[%emt 0:00:06]} 77. Ke4 {[%emt 0:00:08]} Ra4+ {[%emt 0:00:17]} 78. Bd4 {[%emt 0:00:44]} Kg4 {[%emt 0:00:28]} 79. Rg1+ {[%emt 0:00:11]} Kh4 {[%emt 0:00:05]} 80. Rg8 {[%emt 0:01:01]} Rb4 {[%emt 0:00:06]} 81. Ke3 {[%emt 0:01:17]} Kh5 {[%emt 0:00:06]} 82. Be5 {[%emt 0:00:12]} Rg4 {[%emt 0:00:15]} 83. Rh8+ {[%emt 0:00:21]} Kg6 {[%emt 0:00:14]} 84. Bf4 {[%emt 0:00:40]} Kf5 {[%emt 0:00:29]} 85. Rh5+ {[%emt 0:00:12]} Ke6 {[%emt 0:00:05]} 86. Ke4 {[%emt 0:00:03]} Rg1 {[%emt 0:00:42]} 87. Rh6+ {[%emt 0:00:09]} Ke7 {[%emt 0:01:11]} 88. Kf5 {[%emt 0:00:04]} Kd7 {[%emt 0:00:06]} 89. Rd6+ {[%emt 0:00:08]} Kc8 {[%emt 0:00:17]} 90. Be5 {[%emt 0:00:24]} Kb7 {[%emt 0:00:41]} 91. Rh6 {[%emt 0:00:18]} Re1 {[%emt 0:00:41]} 92. Ke6 {[%emt 0:00:20]} Kc6 {[%emt 0:00:07]} 93. Rh7 {[%emt 0:00:11]} Rg1 {[%emt 0:00:08]} 94. Rc7+ {[%emt 0:00:11]} Kb5 {[%emt 0:00:04]} 95. Kd5 {[%emt 0:00:10]} Rg5 {[%emt 0:00:05]} 96. Rb7+ {[%emt 0:00:32]} Ka5 {[%emt 0:00:05]} 97. Rb1 {[%emt 0:02:57]} Rh5 {[%emt 0:00:05]} 98. Ke4 {[%emt 0:01:30]} Ka6 {[%emt 0:00:15]} 99. Kd4 {[%emt 0:00:26]} Rg5 {[%emt 0:00:07]} 100. Kd5 {[%emt 0:00:31]} Ka5 {[%emt 0:00:06]} 101. Kd6 {[%emt 0:00:48]} Ka4 {[%emt 0:00:08]} 102. Bd4 {[%emt 0:01:21]} Rb5 {[%emt 0:00:07]} 103. Rh1 {[%emt 0:00:08]} Kb3 {[%emt 0:00:14]} 104. Rb1+ {[%emt 0:00:09]} Kc4 {[%emt 0:00:05]} 105. Rxb5 1/2-1/2

[Event "Portugal Open 2019"]
[Site "Lisbon"]
[Date "2019.02.09"]
[Round "9.14"]
[White "Pastar, Slaven"]
[Black "Kadric, Denis"]
[Result "0-1"]
[ECO "A21"]
[WhiteElo "2330"]
[BlackElo "2545"]
[Annotator "ChessBase"]
[PlyCount "84"]
[EventDate "2019.01.25"]
[EventType "swiss"]
[EventCountry "POR"]
[SourceTitle "playchess.com"]
[Source "ChessBase"]
[SourceQuality "1"]
[TimeControl "5400+30"]

1. c4 e5 {[%emt 0:03:15]} 2. Nc3 {[%emt 0:00:00]} d6 {[%emt 0:00:17]} 3. g3 {[%emt 0:00:00]} Be7 {[%emt 0:00:12]} 4. Bg2 {[%emt 0:01:24]} c6 {[%emt 0:00:14]} 5. e4 {[%emt 0:05:04]} f5 {[%emt 0:00:40]} 6. d3 {[%emt 0:01:02]} fxe4 {[%emt 0:00:19]} 7. dxe4 {[%emt 0:01:36]} Be6 {[%emt 0:00:11]} 8. c5 {[%emt 0:06:26]} dxc5 {[%emt 0:01:58]} 9. Qh5+ {[%emt 0:01:48]} Bf7 {[%emt 0:00:02]} 10. Qxe5 {[%emt 0:01:04]} Nf6 {[%emt 0:00:02]} 11. Bf4 {[%emt 0:01:41]} O-O {[%emt 0:15:05]} 12. Rd1 {[%emt 0:04:03]} Qe8 {[%emt 0:07:29]} 13. Nf3 {[%emt 0:11:21]} Na6 {[%emt 0:08:39]} 14. O-O {[%emt 0:04:36]} Bc4 {[%emt 0:01:57]} 15. Bh3 {[%emt 0:04:49]} Bxf1 {[%emt 0:01:30]} 16. Bxf1 {[%emt 0:06:16]} Nh5 {[%emt 0:01:27]} 17. Qe6+ {[%emt 0:02:36]} Kh8 {[%emt 0:00:53]} 18. Rd7 {[%emt 0:02:06]} Nxf4 {[%emt 0:16:05]} 19. Qxe7 {[%emt 0:08:52]} Qxe7 {[%emt 0:00:11]} 20. Rxe7 {[%emt 0:00:03]} Ng6 {[%emt 0:01:22]} 21. Rxb7 {[%emt 0:00:10]} Rxf3 {[%emt 0:03:49]} 22. Bxa6 {[%emt 0:00:47]} Ne5 {[%emt 0:00:31]} 23. Be2 {[%emt 0:04:01]} Rf7 {[%emt 0:00:03]} 24. Rxf7 {[%emt 0:02:09]} Nxf7 {[%emt 0:00:01]} 25. f4 {[%emt 0:11:13]} Rd8 {[%emt 0:04:13]} 26. Kf2 {[%emt 0:00:49]} Rd2 {[%emt 0:00:49]} 27. Na4 {[%emt 0:00:45]} c4 {[%emt 0:07:07]} 28. e5 {[%emt 0:03:52]} Kg8 {[%emt 0:01:21]} 29. Ke3 {[%emt 0:00:27]} c3 {[%emt 0:00:00]} 30. Nxc3 {[%emt 0:05:27]} Rxb2 {[%emt 0:00:04]} 31. h3 {[%emt 0:02:10]} Kf8 {[%emt 0:00:21]} 32. Bf3 {[%emt 0:00:41]} Nd8 {[%emt 0:01:14]} 33. f5 {[%emt 0:00:46]} Nf7 {[%emt 0:00:40]} 34. e6 {[%emt 0:02:17]} Ne5 {[%emt 0:01:51]} 35. Be4 {[%emt 0:01:04]} Ke7 {[%emt 0:01:44]} 36. Kd4 {[%emt 0:04:24]} Kd6 {[%emt 0:00:49]} 37. Bb1 {[%emt 0:01:57]} Rb4+ {[%emt 0:01:43]} 38. Ke3 {[%emt 0:00:14]} Nc4+ {[%emt 0:00:18]} 39. Kf4 {[%emt 0:00:55]} Nd2+ {[%emt 0:01:10]} 40. Ne4+ {[%emt 0:00:05]} Kd5 {[%emt 0:08:02]} 41. e7 {[%emt 0:00:02]} Nxe4 {[%emt 0:00:06]} 42. e8=Q {[%emt 0:00:07]} Nf6+ {[%emt 0:00:12] Ke5+ Kxe5} 0-1

[Event "Portugal Open 2019"]
[Site "Lisbon"]
[Date "2019.02.09"]
[Round "9.15"]
[White "Pacan-Milej, Kosma"]
[Black "Butkiewicz, Lukasz"]
[Result "0-1"]
[ECO "A85"]
[WhiteElo "2273"]
[BlackElo "2445"]
[Annotator "NA RC"]
[PlyCount "76"]
[EventDate "2019.01.25"]
[EventType "swiss"]
[EventCountry "POR"]
[SourceTitle "playchess.com"]
[Source "ChessBase"]
[SourceQuality "1"]
[TimeControl "5400+30"]

1. d4 {[%emt 0:00:00]} f5 {[%emt 0:00:00]} 2. c4 {[%emt 0:00:00]} Nf6 {[%emt 0:00:00]} 3. Nc3 {[%emt 0:00:00]} d6 {[%emt 0:00:00]} 4. Bg5 {[%emt 0:00:00]} e6 {[%emt 0:00:00]} 5. e3 {[%emt 0:04:12]} Be7 {[%emt 0:01:06]} 6. Nf3 {[%emt 0:08:35]} O-O {[%emt 0:00:34]} 7. Bd3 {[%emt 0:05:28]} Nc6 {[%emt 0:01:27]} 8. d5 {[%emt 0:09:30]} Ne5 {[%emt 0:11:28]} 9. dxe6 {[%emt 0:03:18]} Bxe6 {[%emt 0:02:57]} 10. Nd4 {[%emt 0:01:36]} Qd7 {[%emt 0:01:27]} 11. O-O {[%emt 0:02:54]} c6 {[%emt 0:00:40]} 12. Rc1 {[%emt 0:15:23]} Kh8 {[%emt 0:12:46]} 13. b3 {[%emt 0:02:50]} Rad8 {[%emt 0:01:46]} 14. Bb1 $14 {[%emt 0:02:44]} g6 {[%emt 0:03:53]} 15. Qe2 {[%emt 0:01:47]} Nfg4 {[%emt 0:06:21]} 16. Bxe7 {[%emt 0:04:28]} Qxe7 {[%emt 0:00:05]} 17. f4 {[%emt 0:11:27]} Nd7 {[%emt 0:02:54]} 18. h3 {[%emt 0:13:15]} Ngf6 {[%emt 0:00:23]} 19. e4 {[%emt 0:01:36]} fxe4 {[%emt 0:03:04]} 20. Nxe4 {[%emt 0:00:12]} Bg8 {[%emt 0:02:55]} 21. Ng5 {[%emt 0:02:35]} Qxe2 {[%emt 0:02:33]} 22. Nxe2 {[%emt 0:00:01]} d5 {[%emt 0:00:47]} 23. f5 {[%emt 0:02:27]} gxf5 {[%emt 0:02:05]} 24. Bxf5 {[%emt 0:02:30]} dxc4 {[%emt 0:01:49]} 25. Nf4 {[%emt 0:01:39]} Nc5 {[%emt 0:18:12]} 26. bxc4 {[%emt 0:01:33]} Rfe8 {[%emt 0:01:03]} 27. Rfe1 {[%emt 0:00:26]} a5 {[%emt 0:04:53]} 28. g4 {[%emt 0:00:54]} h6 {[%emt 0:03:03]} 29. Nf3 {[%emt 0:01:27]} Nfe4 {[%emt 0:02:09]} 30. Nh4 {[%emt 0:00:52]} Bf7 {[%emt 0:01:00]} 31. Rcd1 {[%emt 0:00:27]} Rxd1 {[%emt 0:03:16]} 32. Rxd1 {[%emt 0:00:04]} Kg7 {[%emt 0:01:05]} 33. Rd4 {[%emt 0:01:21]} Kf6 {[%emt 0:00:55]} 34. Nf3 {[%emt 0:00:46]} a4 {[%emt 0:01:01]} 35. a3 {[%emt 0:00:13]} Ng5 {[%emt 0:01:04]} 36. Kg2 {[%emt 0:00:54]} Re3 {[%emt 0:01:06]} 37. Nh4 {[%emt 0:00:25]} Ke5 {[%emt 0:01:12]} 38. Rd8 {[%emt 0:00:37]} Kxf4 {[%emt 0:00:33]} 0-1

[Event "Portugal Open 2019"]
[Site "Lisbon"]
[Date "2019.02.09"]
[Round "9.16"]
[White "Srinath, Rao S.V."]
[Black "Napoli, Nicolo"]
[Result "1/2-1/2"]
[ECO "B12"]
[WhiteElo "2437"]
[BlackElo "2316"]
[Annotator "ChessBase"]
[PlyCount "38"]
[EventDate "2019.01.25"]
[EventType "swiss"]
[EventCountry "POR"]
[SourceTitle "playchess.com"]
[Source "ChessBase"]
[SourceQuality "1"]
[TimeControl "5400+30"]

1. e4 c6 {[%emt 0:01:43]} 2. d4 {[%emt 0:03:01]} d5 {[%emt 0:00:04]} 3. e5 {[%emt 0:00:02]} c5 {[%emt 0:00:06]} 4. dxc5 {[%emt 0:00:55]} e6 {[%emt 0:00:07]} 5. Nf3 {[%emt 0:00:19]} Bxc5 {[%emt 0:00:07]} 6. a3 {[%emt 0:00:04]} Ne7 {[%emt 0:00:44]} 7. Bd3 {[%emt 0:00:05]} Ng6 {[%emt 0:00:05]} 8. b4 {[%emt 0:01:07]} Be7 {[%emt 0:00:06]} 9. O-O {[%emt 0:00:05]} Qc7 {[%emt 0:00:02]} 10. Bxg6 {[%emt 0:02:34]} fxg6 {[%emt 0:04:14]} 11. Nbd2 {[%emt 0:00:08]} a5 {[%emt 0:00:39]} 12. b5 {[%emt 0:00:47]} Nd7 {[%emt 0:00:21]} 13. Bb2 {[%emt 0:00:07]} O-O {[%emt 0:00:29]} 14. Rc1 {[%emt 0:03:09]} Nc5 {[%emt 0:12:47]} 15. c4 {[%emt 0:01:45]} Rd8 {[%emt 0:00:04]} 16. cxd5 {[%emt 0:00:48]} Rxd5 {[%emt 0:00:11]} 17. Qe2 {[%emt 0:03:31]} Qd8 {[%emt 0:03:48]} 18. Nc4 {[%emt 0:15:40]} Nd3 {[%emt 0:09:04]} 19. Rc3 {[%emt 0:00:49]} Bc5 {[%emt 0:06:20]} 1/2-1/2

[Event "Portugal Open 2019"]
[Site "Lisbon"]
[Date "2019.02.09"]
[Round "9.17"]
[White "Korley, Kassa"]
[Black "Sande Edreira, Jose Antonio"]
[Result "1-0"]
[ECO "E91"]
[WhiteElo "2426"]
[BlackElo "2244"]
[Annotator "NA RC"]
[PlyCount "101"]
[EventDate "2019.01.25"]
[EventType "swiss"]
[EventCountry "POR"]
[SourceTitle "playchess.com"]
[Source "ChessBase"]
[SourceQuality "1"]
[TimeControl "5400+30"]

1. d4 {[%emt 0:00:00]} Nf6 {[%emt 0:00:00]} 2. Nf3 {[%emt 0:00:18]} g6 {[%emt 0:00:20]} 3. c4 {[%emt 0:00:03]} Bg7 {[%emt 0:00:06]} 4. Nc3 {[%emt 0:00:02]} O-O {[%emt 0:00:10]} 5. e4 {[%emt 0:00:01]} d6 {[%emt 0:00:07]} 6. Be2 {[%emt 0:00:02] LiveBook: 40180 Games} c5 {[%emt 0:00:10]} 7. O-O {[%emt 0:00:04]} cxd4 {[%emt 0:00:06]} 8. Nxd4 {[%emt 0:00:08]} Nc6 {[%emt 0:00:07]} 9. Be3 {[%emt 0:00:03]} Bd7 {[%emt 0:00:12]} 10. Qd2 {[%emt 0:00:06]} Nxd4 {[%emt 0:00:14]} 11. Bxd4 {[%emt 0:00:03]} Bc6 {[%emt 0:00:07]} 12. f3 {[%emt 0:00:03]} a5 {[%emt 0:00:10]} 13. b3 {[%emt 0:00:05]} Nd7 {[%emt 0:00:07]} 14. Bxg7 {[%emt 0:00:10]} Kxg7 {[%emt 0:00:06]} 15. Kh1 {[%emt 0:00:07] B38: Sicilian: Maroczy Bind with 5...Bg7 and 7...0-0} Qb6 {[%emt 0:00:09]} 16. Rab1 {[%emt 0:00:14]} Qc5 {[%emt 0:00:06]} (16... Nc5 17. a3 Nxb3 18. Qb2 a4 19. Nd5+ Qd4 20. Nxe7 Rfe8 21. Nxc6 bxc6 22. Rfd1 Qxb2 23. Rxb2 {0-1 (39) Bologan,V (2607)-Iturrizaga Bonelli,E (2641) Berlin 2015}) 17. f4 {[%emt 0:02:50]} Nf6 {[%emt 0:00:57]} 18. Bf3 {[%emt 0:00:20]} a4 $146 {[%emt 0:04:00]} ({Predecessor:} 18... Rac8 19. Rbe1 Rfd8 20. Qb2 e5 21. f5 {½-½ (40) Molchanova,T (2285)-Korbut,E (2319) St Petersburg 2004}) 19. Rfc1 {[%emt 0:30:44]} axb3 {[%emt 0:00:46]} 20. axb3 {[%emt 0:00:02]} Kg8 {[%emt 0:14:50]} 21. b4 {[%emt 0:02:21]} Qxc4 {[%emt 0:19:03]} 22. b5 {[%emt 0:00:32]} Bxe4 {[%emt 0:01:15]} 23. Nxe4 {[%emt 0:00:39]} Nxe4 {[%emt 0:00:08]} 24. Qe1 $18 {[%emt 0:00:55]} (24. Rxc4 $2 {is the wrong capture.} Nxd2 25. Rcc1 Nxb1 $19) 24... Nf2+ {[%emt 0:00:53]} 25. Qxf2 {[%emt 0:00:15]} Qxf4 {[%emt 0:00:04]} 26. Qe2 {[%emt 0:02:26]} Rab8 {[%emt 0:12:44]} 27. Qxe7 {[%emt 0:00:51]} b6 {[%emt 0:00:03]} 28. Bc6 {[%emt 0:00:40]} Qe5 {[%emt 0:01:14]} 29. Re1 {[%emt 0:00:15]} Qxe7 {[%emt 0:01:30]} 30. Rxe7 {[%emt 0:00:02]} Kg7 {[%emt 0:00:05]} 31. Rf1 {[%emt 0:00:21]} Rbc8 {[%emt 0:02:08]} 32. g4 {[%emt 0:00:42]} h5 {[%emt 0:00:49]} 33. g5 {[%emt 0:00:11]} h4 {[%emt 0:04:18]} 34. Kg2 {[%emt 0:00:03]} d5 {[%emt 0:00:15]} 35. Rd1 {[%emt 0:00:37]} Rfd8 {[%emt 0:01:35]} 36. Rd4 {[%emt 0:00:05]} Rd6 {[%emt 0:01:44]} 37. Kh3 {[%emt 0:01:03]} Re6 {[%emt 0:01:09]} 38. Rxe6 {[%emt 0:00:04]} fxe6 {[%emt 0:00:03]} 39. Kxh4 {[%emt 0:00:08]} Kf7 {[%emt 0:02:15]} 40. Kg4 {[%emt 0:00:43]} Ke7 {[%emt 0:00:07]} 41. h4 {[%emt 0:00:07]} Kd6 {[%emt 0:00:09]} 42. Rf4 {[%emt 0:00:27]} Rg8 {[%emt 0:00:35]} 43. Rf6 {[%emt 0:00:08]} d4 {[%emt 0:00:18]} 44. Be4 {[%emt 0:00:13]} Ke5 {[%emt 0:00:21]} 45. Bd3 {[%emt 0:00:11]} Rc8 {[%emt 0:00:15]} 46. Bxg6 {[%emt 0:00:23]} Rc1 {[%emt 0:01:41]} 47. Bf7 {[%emt 0:01:13]} Rg1+ {[%emt 0:01:20]} 48. Kh5 {[%emt 0:00:26]} d3 {[%emt 0:00:14]} 49. Rxe6+ {[%emt 0:00:06]} Kf4 {[%emt 0:00:13]} 50. Rd6 {[%emt 0:01:34]} Ke3 {[%emt 0:00:18]} 51. Bc4 {[%emt 0:01:06] Kd4} 1-0

[Event "Portugal Open 2019"]
[Site "Lisbon"]
[Date "2019.02.09"]
[Round "9.18"]
[White "Chylewski, Patryk"]
[Black "Sukandar, Irine Kharisma"]
[Result "1-0"]
[ECO "D25"]
[WhiteElo "2304"]
[BlackElo "2397"]
[Annotator "NA"]
[PlyCount "89"]
[EventDate "2019.01.25"]
[EventType "swiss"]
[EventCountry "POR"]
[SourceTitle "playchess.com"]
[Source "ChessBase"]
[SourceQuality "1"]
[TimeControl "5400+30"]

1. d4 {[%emt 0:00:00]} d5 {[%emt 0:00:58]} 2. c4 {[%emt 0:00:00]} dxc4 {[%emt 0:00:13]} 3. Nf3 {[%emt 0:00:05]} Nf6 {[%emt 0:00:17]} 4. e3 {[%emt 0:00:10]} a6 {[%emt 0:00:22]} 5. Bxc4 {[%emt 0:07:19]} b5 {[%emt 0:00:17]} 6. Bb3 {[%emt 0:02:53]} e6 {[%emt 0:00:30]} 7. O-O {[%emt 0:02:51]} Bb7 {[%emt 0:00:14]} 8. a4 {[%emt 0:00:37]} b4 {[%emt 0:00:17]} 9. a5 {[%emt 0:03:56]} Be7 {[%emt 0:00:25]} 10. Qe2 {[%emt 0:01:06]} O-O {[%emt 0:00:29]} 11. Rd1 {[%emt 0:05:11]} Nbd7 {[%emt 0:00:44]} 12. Nbd2 {[%emt 0:03:29]} c5 {[%emt 0:01:48]} 13. Nc4 {[%emt 0:01:37]} Qc7 {[%emt 0:01:39]} 14. Bd2 {[%emt 0:08:20]} Bd5 {[%emt 0:03:42]} 15. dxc5 {[%emt 0:06:57]} Nxc5 {[%emt 0:01:43]} 16. Bc2 {[%emt 0:01:55]} b3 {[%emt 0:04:46]} 17. Bb1 {[%emt 0:03:23]} Bc6 {[%emt 0:03:28]} 18. Nd4 {[%emt 0:07:14]} Bb7 {[%emt 0:07:23]} 19. Bb4 {[%emt 0:03:45]} Rfd8 {[%emt 0:08:51]} 20. Nb6 {[%emt 0:05:19]} Rab8 {[%emt 0:00:51]} 21. Rc1 {[%emt 0:02:35]} e5 {[%emt 0:21:19]} 22. Nxb3 {[%emt 0:23:15]} Qc6 {[%emt 0:00:23]} 23. f3 {[%emt 0:01:46]} Nxb3 {[%emt 0:00:20]} 24. Rxc6 {[%emt 0:00:08]} Bxb4 {[%emt 0:00:48]} 25. Ra4 {[%emt 0:05:38]} Rd2 {[%emt 0:05:01]} 26. Qc4 {[%emt 0:00:43]} Rd1+ {[%emt 0:00:29]} 27. Kf2 {[%emt 0:00:02]} Be1+ {[%emt 0:00:33]} 28. Ke2 {[%emt 0:01:49]} Rbd8 {[%emt 0:00:39]} 29. Bd3 {[%emt 0:01:54]} Rd2+ {[%emt 0:07:57]} 30. Kxe1 {[%emt 0:00:06]} Bxc6 {[%emt 0:00:05]} 31. Qxc6 {[%emt 0:00:48]} R2xd3 {[%emt 0:01:34]} 32. Nc4 {[%emt 0:00:10]} h5 {[%emt 0:01:04]} 33. h4 {[%emt 0:00:07]} e4 {[%emt 0:07:57]} 34. Kf2 {[%emt 0:00:07]} exf3 {[%emt 0:00:27]} 35. gxf3 {[%emt 0:00:05]} Rd1 {[%emt 0:00:29]} 36. Ra3 {[%emt 0:00:46]} Nd2 {[%emt 0:00:49]} 37. Qxa6 {[%emt 0:01:52]} Nxc4 {[%emt 0:02:11]} 38. Qxc4 {[%emt 0:00:01]} R8d2+ {[%emt 0:00:07]} 39. Kg3 {[%emt 0:00:40]} Rg1+ {[%emt 0:08:39]} 40. Kf4 {[%emt 0:00:12]} Nd5+ {[%emt 0:00:32]} 41. Ke5 {[%emt 0:00:21]} Ne7 {[%emt 0:02:46]} 42. a6 {[%emt 0:00:15]} Ng6+ {[%emt 0:04:49]} 43. Ke4 {[%emt 0:00:08]} Kh7 {[%emt 0:00:27]} 44. a7 {[%emt 0:00:57]} Nxh4 {[%emt 0:02:04]} 45. Qxf7 {[%emt 0:00:49]} 1-0